Cogmind - Beta 14 @@@ ROGUE MODE // 2024.12.23 @ 21:56:53 Player: yua241 Result: Destroyed by H-61 Shepherd with Heavy Assault Cannon Performance ------------- Evolutions (3) 1500 Regions Visited (6) 1200 Robots Destroyed (49) 245 Value Destroyed (1541) 1541 Prototype IDs (2) 40 Alien Tech Used (0) 0 Bonus (676) 676 TOTAL SCORE: 5202 Bonus ------- Follower Combat Kills 176 Entered DSFs 500 Cogmind --------- Core Integrity 0/700 Matter 259/300 Energy 100/100 System Corruption 0% Temperature Cool (0) Movement Core (50) Location -7/DSF Parts ------- > --- POWER (2) -------- (None) > --- PROPULSION (4) --- (None) > --- UTILITY (4) ------ (None) > --- WEAPON (3) ------- (None) > --- INVENTORY (5) ---- Seismic Detector Advanced Targeting Computer Hardlight Generator Shield Generator Recalibrator Peak State ------------ > --- POWER ------------ Light Nuclear Core > --- PROPULSION ------- Aluminum Leg Aluminum Leg Carbon-fiber Leg Titanium Leg > --- UTILITY ---------- Medium Storage Unit Terrain Scanner Advanced Terrain Scan Processor Improved Targeting Computer > --- WEAPON ----------- Field Laser Field Laser > --- INVENTORY -------- Seismic Detector Advanced Targeting Computer Hardlight Generator Shield Generator Recalibrator Shotgun Mini Grenade Launcher Improved Grenade Launcher [Rating: 27] Favorites ----------- Power Ion Engine Engine Ion Engine Power Core Light Nuclear Core Propulsion Aluminum Leg Leg Aluminum Leg Utility Improved Targeting Computer Device Terrain Scanner Storage Medium Storage Unit Processor Improved Targeting Computer Weapon Minigun Energy Gun Field Laser Ballistic Gun Minigun Launcher Improved Grenade Launcher Build | -11 -10 -9 -9 -8 -7 -7 ------- Run | Yrd Mat Mat Sto Mat Fac DSF Slots Evolved 6 | . . 2 . 2 2 . Power 1 | . . . . . 1 . Propulsion 2 | . . . . 2 . . Utility 2 | . . 2 . . . . Weapon 1 | . . . . . 1 . Parts Attached 56 | 6 9 5 8 23 . 5 Power 7 | 1 1 . 1 4 . . Engine 3 | 1 1 . 1 . . . Core 4 | . . . . 4 . . Reactor . | . . . . . . . Propulsion 17 | 2 2 . 4 9 . . Treads . | . . . . . . . Leg 17 | 2 2 . 4 9 . . Wheel . | . . . . . . . Hover . | . . . . . . . Flight . | . . . . . . . Utility 11 | 1 4 2 1 2 . 1 Device 5 | . 1 1 1 2 . . Storage 3 | 1 2 . . . . . Processor 3 | . 1 1 . . . 1 Hackware . | . . . . . . . Protection . | . . . . . . . Artifact . | . . . . . . . Weapon 21 | 2 2 3 2 8 . 4 Energy Gun 10 | 2 2 1 1 4 . . Energy Cannon . | . . . . . . . Ballistic Gun 8 | . . 2 1 3 . 2 Ballistic Cannon . | . . . . . . . Launcher 3 | . . . . 1 . 2 Special Weapon . | . . . . . . . Impact Weapon . | . . . . . . . Slashing Weapon . | . . . . . . . Piercing Weapon . | . . . . . . . Special Melee Weapon . | . . . . . . . Unidentified Prototypes . | . . . . . . . Parts Lost 21 | . . . 6 10 . 5 Power 3 | . . . 1 1 . 1 Propulsion 8 | . . . 3 5 . . Utility 4 | . . . 1 1 . 2 Weapon 6 | . . . 1 3 . 2 Highest Loss Streak 5 | . . . 2 5 . 5 To Critical Strikes . | . . . . . . . Average Slot Usage (%) 90 | . 90 93 96 89 76 66 Engine 5 | . 13 11 10 . . . Core 3 | . . . . 8 7 5 Leg 27 | . 26 22 21 33 30 23 Device 7 | . 4 5 8 8 7 5 Storage 10 | . 13 11 11 9 7 6 Processor 15 | . 4 22 22 13 7 11 Energy Gun 10 | . 27 5 10 6 15 6 Ballistic Gun 8 | . . 14 11 9 . 3 Peak Build Rating 27 | 6 9 18 16 25 22 27 Average Rating 16 | 4 6 15 14 21 22 19 On Entrance 12 | . 6 8 16 15 22 22 Naked Turns 11 | . . . . . . 11 Heaviest Build 26 | 12 22 22 22 26 22 22 Greatest Support 52 | 20 20 20 23 52 52 52 Greatest Overweight (x) 5 | 1 5 1 4 5 . 4 Average Overweight (x) . | . . . . . . . Largest Inventory Capacity 10 | 8 10 10 10 10 10 10 Average Capacity 9 | 7 9 10 10 10 10 9 Most Carried 10 | 8 10 10 10 10 7 9 Average Carried 8 | 5 8 9 8 8 7 6 Final Capacity 10 | 8 10 10 10 10 10 5 Final Carried 9 | 7 7 9 8 7 7 5 Class Distribution -------------------- 55% | Mutant 25% | Scavenger-Mutant 19% | Commander-Mutant Dominant Class ---------------- Mutant | -10/Materials Mutant | -9/Materials Commander-Mutant | -9/Storage Mutant | -8/Materials Scavenger-Mutant | -7/Factory Scavenger-Mutant | -7/DSF Resources | -11 -10 -9 -9 -8 -7 -7 ----------- Run | Yrd Mat Mat Sto Mat Fac DSF Matter Collected 1449 | 235 45 69 304 771 . 25 Remotely 115 | . . 69 46 . . . Salvage Created 1640 | 39 70 69 569 865 . 28 Parts 110 | 5 8 7 37 50 . 3 Haulers Intercepted 1 | . . . . 1 . . Recyclers Shooed 3 | . 1 1 . 1 . . Parts Field Recycled . | . . . . . . . Retrieved Matter . | . . . . . . . Parts Self-Destructed . | . . . . . . . Prevented . | . . . . . . . Kills | -11 -10 -9 -9 -8 -7 -7 ------- Run | Yrd Mat Mat Sto Mat Fac DSF Combat Hostiles Destroyed 37 | . 3 4 11 17 . 2 Guns 33 | . 3 4 11 14 . 1 AOE 4 | . . . . 3 . 1 Classes Destroyed 15 | 2 3 . 5 4 . 1 Worker 1 | 1 . . . . . . Builder 2 | . 1 . . 1 . . Tunneler 1 | 1 . . . . . . Hauler 1 | . . . . 1 . . Recycler 1 | . . . 1 . . . Mechanic 1 | . . . . 1 . . Operator 3 | . . . 1 2 . . Watcher 2 | . 1 . . 1 . . Swarmer 8 | . 3 4 . . . 1 Cutter 1 | . . . . . . 1 Grunt 17 | . . . 8 9 . . Duelist 2 | . . . 1 1 . . Sentry 5 | . . . 2 3 . . Specialist 2 | . . . . 2 . . Hunter 2 | . . . . 2 . . Best Kill Streak 6 | 1 4 4 3 6 . 1 Combat Bots Only 4 | . 3 4 3 4 . 1 Max Kills in Single Turn 2 | 1 1 1 2 2 . 1 Gunslinging . | . . . . . . . Exploded 2 | . . . . 2 . 1 Melee . | . . . . . . . Uniques/NPCs Destroyed . | . . . . . . . Combat | -11 -10 -9 -9 -8 -7 -7 -------- Run | Yrd Mat Mat Sto Mat Fac DSF Hostile Shots Fired 300 | . 16 31 42 118 . 93 Missed 86 | . 3 12 11 30 . 30 Damage Taken 3665 | . 107 167 580 1569 . 1242 Core 1225 | . 18 26 110 339 . 732 Absorbed by Shields 95 | . . . . 44 . 51 Core Remaining (%) 74 | 100 92 . 66 38 . . Volleys Fired 167 | 9 15 8 42 84 . 9 Largest 2 | 2 2 2 2 2 . 2 Hottest 126 | 80 90 65 81 126 . 86 Shots Fired 302 | 18 28 16 68 160 . 12 Gun 296 | 18 28 16 68 156 . 10 Cannon . | . . . . . . . Launcher 6 | . . . . 4 . 2 Special . | . . . . . . . Kinetic 187 | . . 8 41 136 . 2 Thermal 109 | 18 28 8 27 20 . 8 Explosive 6 | . . . . 4 . 2 Electromagnetic . | . . . . . . . Robot Hit Streak 18 | 3 6 3 13 18 . 1 Robot Miss Streak 6 | 4 6 2 2 2 . 3 Penetration Max . | . . . . . . . Secondary Targets 6 | . 1 3 . 2 . . Max Gunslinging Chain 1 | . 1 1 . 1 . . Shots Hit Robots 196 | 5 15 7 54 111 . 4 Core Hits 90 | 2 7 4 23 50 . 4 Critical Kills . | . . . . . . . Critical Parts Destroyed 1 | . . . . 1 . . Critical Strikes 1 | . . . . 1 . . Destroy 1 | . . . . 1 . . Melee Attacks . | . . . . . . . Impact . | . . . . . . . Slashing . | . . . . . . . Piercing . | . . . . . . . Sneak Attacks . | . . . . . . . Combat Hostiles . | . . . . . . . Follow-up Attacks . | . . . . . . . Damage Inflicted 3822 | 55 186 98 835 2400 . 248 Guns 3044 | 55 186 98 831 1792 . 82 Cannons . | . . . . . . . Explosions 774 | . . . . 608 . 166 Melee . | . . . . . . . Ramming 4 | . . . 4 . . . Kinetic 2222 | . . 34 587 1589 . 12 Thermal 1032 | 55 186 64 244 413 . 70 Explosive 509 | . . . . 343 . 166 Electromagnetic 55 | . . . . 55 . . Impact . | . . . . . . . Slashing . | . . . . . . . Piercing . | . . . . . . . Highest Corruption 3 | . 3 . . . . . Average Corruption 2 | . 2 . . . . . Corruption Purged . | . . . . . . . Corruption Blocked . | . . . . . . . Effects 5 | . 5 . . . . . Message Errors 2 | . 2 . . . . . Heat Flow Errors 2 | . 2 . . . . . Data Loss (minor) 1 | . 1 . . . . . Overload Shots . | . . . . . . . Overflow Damage 49 | . . . . 16 . 33 Projectiles . | . . . . . . . Explosions 49 | . . . . 16 . 33 Melee . | . . . . . . . Knockbacks . | . . . . . . . Impact . | . . . . . . . Kinetic . | . . . . . . . Secondary . | . . . . . . . Self-Inflicted Damage 237 | . . . . 168 . 69 Shots 6 | . . . . 4 . 2 Rammed . | . . . . . . . Targets Rammed 3 | . . . 3 . . . Kicked 3 | . . . 3 . . . Crushed . | . . . . . . . Highest Temperature 330 | 54 330 36 75 196 . . Average Temperature 46 | 22 141 17 20 30 . . Received Heat Transfer 709 | . . 15 156 513 . 25 Effects 5 | . 5 . . . . . Energy Bleed 1 | . 1 . . . . . Interference 4 | . 4 . . . . . Siege Activations . | . . . . . . . Robots Corrupted . | . . . . . . . Combat Hostiles . | . . . . . . . Parts Fried . | . . . . . . . Impact Corruptions . | . . . . . . . Robots Melted . | . . . . . . . Combat Hostiles . | . . . . . . . Parts Melted 1 | . . . . 1 . . Heat Transferred 2064 | 125 437 150 573 631 . 148 Parts Sabotaged . | . . . . . . . Parts Stolen . | . . . . . . . Parts Stripped . | . . . . . . . Power Chain Reactions . | . . . . . . . Alert | -11 -10 -9 -9 -8 -7 -7 ------- Run | Yrd Mat Mat Sto Mat Fac DSF Peak Influence 375 | 10 119 120 375 368 79 148 Initial 79 | . 6 . 50 49 79 55 Average 147 | 1 45 25 172 185 79 91 Maximum Alert Level 1 | . . . 1 1 . . Low Security (%) 70 | 100 100 100 62 60 100 100 Level 1 29 | . . . 37 39 . . Level 2 . | . . . . . . . Level 3 . | . . . . . . . Level 4 . | . . . . . . . Level 5 . | . . . . . . . High Security . | . . . . . . . Max Security . | . . . . . . . Squads Dispatched 7 | . . . 2 4 . 1 Investigation . | . . . . . . . Extermination . | . . . . . . . Reinforcement 7 | . . . 2 4 . 1 Assault . | . . . . . . . Garrison . | . . . . . . . Intercept . | . . . . . . . Searches Triggered . | . . . . . . . Construction Impeded . | . . . . . . . Haulers Reinforced . | . . . . . . . Active Scanning Responses . | . . . . . . . Cargo Convoy Interrupts . | . . . . . . . Stealth | -11 -10 -9 -9 -8 -7 -7 --------- Run | Yrd Mat Mat Sto Mat Fac DSF Distress Signals 10 | . 1 . 4 5 . . Communications Jammed . | . . . . . . . Distress Signals . | . . . . . . . Times Spotted 85 | . 10 6 20 33 . 16 Peak Tracking Total 7 | . 4 4 3 6 . 7 Tactical Retreats 7 | . . . . 3 . 4 Traps | -11 -10 -9 -9 -8 -7 -7 ------- Run | Yrd Mat Mat Sto Mat Fac DSF Traps Triggered 7 | . 4 . . 2 . 1 Indirectly 1 | . . . . 1 . . Trap Hack Attempts . | . . . . . . . Triggered . | . . . . . . . Disarmed . | . . . . . . . Reprogrammed . | . . . . . . . Reused . | . . . . . . . Traps Extracted . | . . . . . . . Installed . | . . . . . . . Triggered . | . . . . . . . Machines | -11 -10 -9 -9 -8 -7 -7 ---------- Run | Yrd Mat Mat Sto Mat Fac DSF Machines Disabled 3 | . . . . 3 . . Max in Single Turn 2 | . . . . 2 . . Garrison Access 1 | . . . . 1 . . Machines Repaired . | . . . . . . . Machines Dismantled . | . . . . . . . Machines Sabotaged . | . . . . . . . Overloaded Fab Kills . | . . . . . . . Hacking | -11 -10 -9 -9 -8 -7 -7 --------- Run | Yrd Mat Mat Sto Mat Fac DSF Machines Accessed 10 | . 2 1 2 4 1 . Terminals 7 | . 1 1 2 2 1 . Fabricators . | . . . . . . . Repair Stations . | . . . . . . . Recycling Units 1 | . 1 . . . . . Scanalyzers 1 | . . . . 1 . . Garrison Access 1 | . . . . 1 . . Total Hacks 24 | . 5 1 5 12 1 . Successful 14 | . 3 . 1 9 1 . Failed 10 | . 2 1 4 3 . . Catastrophic 1 | . . . 1 . . . Database Lockouts . | . . . . . . . Manual . | . . . . . . . Terminals 16 | . 2 1 5 7 1 . Fabricators . | . . . . . . . Repair Stations . | . . . . . . . Recycling Units 3 | . 3 . . . . . Scanalyzers 2 | . . . . 2 . . Garrison Access 3 | . . . . 3 . . Terminal Hacks 8 | . 1 . 1 5 1 . Record 2 | . 1 . . 1 . . Prototype ID Bank 1 | . . . . 1 . . Open DSF 1 | . . . . . 1 . Fabricator Index 1 | . . . 1 . . . Maintenance Status 2 | . . . . 2 . . Hauler Manifests 1 | . . . . 1 . . Fabricator Hacks . | . . . . . . . Repair Station Hacks . | . . . . . . . Recycling Unit Hacks 2 | . 2 . . . . . Recycle Component 1 | . 1 . . . . . Process 1 | . 1 . . . . . Scanalyzer 2 | . . . . 2 . . Insert Component 1 | . . . . 1 . . Analyze 1 | . . . . 1 . . Garrison Access Hacks 2 | . . . . 2 . . Unlock Access 1 | . . . . 1 . . Seal Access 1 | . . . . 1 . . Unauthorized Hacks . | . . . . . . . Terminals . | . . . . . . . Fabricators . | . . . . . . . Repair Stations . | . . . . . . . Recycling Units . | . . . . . . . Scanalyzers . | . . . . . . . Garrison Access . | . . . . . . . Data Cores Recovered 1 | . . . 1 . . . Used . | . . . . . . . Hacking Detections 5 | . . . 2 3 . . Full Trace Events . | . . . . . . . Feedback Events . | . . . . . . . Feedback Blocked . | . . . . . . . Robot Schematics Acquired . | . . . . . . . Robots Built . | . . . . . . . Authchips . | . . . . . . . Time . | . . . . . . . Total Robot Build Rating . | . . . . . . . Part Schematics Acquired 1 | . . . . 1 . . Parts Built . | . . . . . . . Authchips . | . . . . . . . Time . | . . . . . . . Total Part Build Rating . | . . . . . . . Parts Repaired . | . . . . . . . Time . | . . . . . . . Parts Recycled 1 | . 1 . . . . . Recycled Matter . | . . . . . . . Retrieved Matter . | . . . . . . . Retrieved Components . | . . . . . . . Parts Scanalyzed 1 | . . . . 1 . . Part Schematics Acquired 1 | . . . . 1 . . Parts Damaged . | . . . . . . . Bothacking | -11 -10 -9 -9 -8 -7 -7 ------------ Run | Yrd Mat Mat Sto Mat Fac DSF Used RIF Installer . | . . . . . . . Robots Hacked . | . . . . . . . Non-combat . | . . . . . . . Combat . | . . . . . . . Robot Hacks Applied . | . . . . . . . Relay Couplers Released . | . . . . . . . Fabnet Peak Effective % . | . . . . . . . Robots Rewired . | . . . . . . . Allies Hacked . | . . . . . . . Hacks Repelled . | . . . . . . . Allies | -11 -10 -9 -9 -8 -7 -7 -------- Run | Yrd Mat Mat Sto Mat Fac DSF Total Allies 10 | . . . 10 . . . Largest Group 10 | . . . 10 2 . . Highest-Rated Group 88 | . . . 88 24 . . Highest-Rated Ally 16 | . . . 16 16 . . Total Orders . | . . . . . . . Ally Attacks 33 | . . . 30 3 . . Total Damage 361 | . . . 316 45 . . Kills 10 | . . . 10 . . . Allies Corrupted . | . . . . . . . Allies Melted . | . . . . . . . Intel | -11 -10 -9 -9 -8 -7 -7 ------- Run | Yrd Mat Mat Sto Mat Fac DSF Robot Analysis Total . | . . . . . . . Derelict Logs Recovered . | . . . . . . . Drone Launches . | . . . . . . . Drone Recoveries . | . . . . . . . Exploration | -11 -10 -9 -9 -8 -7 -7 ------------- Run | Yrd Mat Mat Sto Mat Fac DSF Turns Passed 4246 | 121 479 175 1441 1766 30 234 Spaces Moved 2138 | 71 268 91 737 810 25 136 Core 68 | 22 10 . 5 7 . 24 Treads . | . . . . . . . Legs 2070 | 49 258 91 732 803 25 112 Wheels . | . . . . . . . Hover . | . . . . . . . Flight . | . . . . . . . Fastest Speed 50 | 50 120 120 120 120 122 50 Average Speed 135 | 106 124 151 154 124 122 128 Slowest Speed 300 | 120 300 190 260 300 122 250 Overloaded Moves . | . . . . . . . Propulsion Burnouts . | . . . . . . . Robots Hopped . | . . . . . . . Cave-ins Triggered . | . . . . . . . Exploration Rate (%) 27 | 4 38 5 62 38 1 44 Regions Visited 6 Branch Regions 1 Pre-discovered Areas . | . . . . . . . Known Exits Taken 1 | . . . . . 1 . Unknown Exits Taken 5 | 1 1 1 1 1 . . Scrap Searched . | . . . . . . . Spaces Dug . | . . . . . . . Terrain Destroyed 61 | . . . . 45 . 16 Melee . | . . . . . . . Projectile . | . . . . . . . AOE 61 | . . . . 45 . 16 Terrain Rammed . | . . . . . . . Walls Destroyed . | . . . . . . . Machines Disabled . | . . . . . . . Actions | -11 -10 -9 -9 -8 -7 -7 --------- Run | Yrd Mat Mat Sto Mat Fac DSF Total 3238 | 98 387 116 982 1447 24 184 Wait 757 | . 75 . 177 483 . 22 Move 2132 | 70 267 90 736 809 24 136 Hop . | . . . . . . . Pick Up 77 | 13 15 8 11 27 . 3 Fast Attach . | . . . . . . . Attach 54 | 6 8 5 8 22 . 5 Detach 11 | . 2 1 . 7 . 1 Swap 2 | . 1 . . 1 . . Drop 27 | . 4 4 4 14 . 1 Fire 167 | 9 15 8 42 84 . 9 Melee . | . . . . . . . Ram . | . . . . . . . Kick 3 | . . . 3 . . . Crush . | . . . . . . . Escape Stasis 7 | . . . . . . 7 Rewire 1 | . . . 1 . . . Trap . | . . . . . . . Miscellaneous . | . . . . . . . Route ------- -11/Scrapyard -10/Materials -9/Materials -9/Storage -8/Materials -7/Factory -7/DSF History --------- Turn | Location | Event 26 | -11/Scrapyard | Discovered new exit (range 15) 122 | -11/Scrapyard | Entered Materials 316 | -10/Materials | Build established: Mutant 506 | -10/Materials | Discovered new exit (range 16) 601 | -10/Materials | Entered another Materials area 601 | -9/Materials | Evolved 2 slots: Utility x2 745 | -9/Materials | Discovered new exit (range 14) 776 | -9/Materials | Entered Storage 1305 | -9/Storage | Assisted by bots powering up and referring to "LRC-V3" 1616 | -9/Storage | Build established: Commander-Mutant 2171 | -9/Storage | Lost 5 allies 2183 | -9/Storage | Discovered new exit (range 16) 2217 | -9/Storage | Entered Materials 2217 | -8/Materials | Accompanied by 2 allies 2217 | -8/Materials | Evolved 2 slots: Propulsion x2 2675 | -8/Materials | Build established: Mutant 3290 | -8/Materials | Core integrity fell below 50% 3326 | -8/Materials | Lost 5 parts (1p3n1w) 3673 | -8/Materials | Discovered new exit (range 15) 3680 | -8/Materials | Build established: Scavenger-Mutant 3976 | -8/Materials | Identified exit to Garrison 3983 | -8/Materials | Entered Factory 3983 | -7/Factory | Evolved 2 slots: Power x1, Weapon x1 4007 | -7/Factory | Identified exit to DSF 4013 | -7/Factory | Entered DSF 4073 | -7/DSF | Additional patrols routed to DSF 4219 | -7/DSF | Core integrity fell below 50% 4233 | -7/DSF | Core integrity fell below 20% 4247 | -7/DSF | Destroyed by H-61 Shepherd with Heavy Assault Cannon Last Messages --------------- 04231_ C-17 Slicer destroyed. 04236_ Med. Storage Unit destroyed. 04239_ Triggered Stasis Trap. 04239_ A bubble of rippling energy engulfs the area. 04239_ Field strength at 94. 04240_ Field strength at 83. 04241_ Field strength at 77. 04242_ C-30 ARC bursts open, deploying its payload. 04242_ B-48 Gladiator unfolds itself. 04242_ G-47 Trooper unfolds itself. 04242_ Field strength at 66. 04243_ Field strength at 60. 04244_ Field strength at 46. 04245_ Field strength at 31. 04246_ Critical hit (Burn: +26). 04246_ Field strength at 16. 04247_ Penetrated by Slug. [Achievement: 5k Club] Map ----- +----------------------------------------------------+ | | | | | | | | | | | | | | | | | | | | | | | | | | | | | | | ?????###??#######?##??##?#####?????????????????? | | ???####?#######?######?##?##?#?????????????????? | | ??#???##?###################?##???#????????????? | | ?#??##?#?##########?#?#?####?#?##??????????????? | | ?#?###?##""######?##?#####?#???###?????????????? | | ?##?#?#??#"##?##############?###?###???????????? | | ?##?######"########?#########?#????????????????? | | #?#####"""""#########== #####??????????????? | | #?#####"""""##!!# #== % #####??????????????? | | #?##"##"" =ss ###?##?????????????? | | ####""""" c@^^ ######?????????????? | | ?#?####"" ##!!#!!!###^^^###??##??????????????? | | ?####?### ] ##!!#!!!### ######???????????????? | | ###### = ######### ! !!##?##??????????????? | | ##### ! !!######## ! !!###?##?????????????? | | ##### # % !!########!! !!######?#???????????? | | #?#### ###?######## ;##??#???????????????? | | ##### # = !######## ! !!?##????????????????? | | ##?##### !!######## ! b !!####???????????????? | | #??##### =[!!######## ! !!#??????????????????? | | ###?##### =####?##?####g ####?????????????????? | | ?##??## ! =## # ###aHg###??????????????????? | | #?#####!!%[## #!!!#? %a#???????????????????? | | #????## " ? ?????????????????? | | ##### " ????????????????????? | | #?#?### ????????????????????? | | ?####?# ## #!!!## ?????????????????????? | | ###?### #? #?!!##?????????????????????????? | | #??##############??####????????????????????????? | | ##?#####?#???####?#?#??????????????????????????? | | ###???#???###?##???##??????????????????????????? | | ???##?#?#?#??#???##?#??????????????????????????? | | ???#?#?#???##???###????????????????????????????? | | ?????###?????##?#??????????????????????????????? | | ???#??###?##?#?????????????????????????????????? | +----------------------------------------------------+ Best States ------------- Heat Dissipation 34 Energy Generation 14 Energy Capacity 250 Matter Stores 300 Matter Capacity 300 Sight Range 16 Robot Scan Range 14 Terrain Scan Range 14 Terrain Scan Density 210 Evasion (%) 55 Targeting Accuracy 12 Item Schematics ----------------- Hpw. Tractor Beam | -8/Materials | Scanalyzed Robot Schematics ------------------ None Fabricated ------------ Nothing Alien Tech Used ----------------- None Achievements -------------- 5k Club Made in Tau Ceti IV Novice Programmer Shopping List The More The Merrier Use The Force Challenges ------------ None Game ------ Seed AntigravDeuteriumFlail Manual? 0 Play Time 00:48:56 Cumulative 1.8 hours Start 2024.12.23 @ 21:01:26 End 2024.12.23 @ 21:56:53 Sessions 1 Manual Loads 0 Difficulty Rogue Special Mode None Game No. 5 Rogue 5 Adventurer 0 Explorer 0 Win Type - Total 0 Types 0/0/0/0/0/0/0/0/0 Lore% 0 Gallery% 3 Achievement% 5 Wizard Run 0 Options --------- Layout 2 ASCII 0 Keyboard 1 Movement Vi Keybinds 0 Fullscreen 2 Font 24/Swanston Map View 50x44 Zoom Use 0% Tactical HUD 1 Map Filters NONE Filters NONE Steam 1 RUN: 38a2e249-279f-4c32-a0cf-1f532036af92